bitfinex-derivatives/quotes_ETHF0:USTF0_20240904
["timestamp","ask_amount","ask_price","bid_price","bid_amount"]
[1725432804179,3.817,2381.3,2381.2,0.42001]
[1725432804379,0.46353225,2381.9,2381.3,0.41999]
[1725432804380,0.41995,2381.6,2381.3,0.41999]
[1725432804583,0.77585,2381.6,2381.4,2.9]
[1725432804883,4.53843225,2381.9,2381.5,3.2078]
[1725432804884,0.41992,2381.8,2381.5,3.2078]
[1725432805481,0.41992,2381.8,2381.5,3.62776]
[1725432805677,0.41993,2381.7,2381.5,3.2078]
[1725432805878,0.41992,2381.8,2381.5,3.2078]
[1725432806080,0.41993,2381.7,2381.5,3.2078]
[1725432806380,0.41992,2381.8,2381.6,2.9]
[1725432807480,0.41993,2381.7,2381.6,2.9]
[1725432808981,0.41992,2381.8,2381.6,2.9]
[1725432809383,0.7728,2382.1,2381.6,3.2737]
[1725432809575,0.7728,2382.1,2382.0,3.2078]
[1725432810179,0.7728,2382.1,2382.0,3.62767]
[1725432811981,0.41981,2382.4,2382.0,3.62767]
[1725432812176,1.17541,2382.4,2382.1,2.9]
[1725432814381,0.7556,2382.4,2382.0,3.2078]
[1725432814687,0.41989,2381.9,2381.8,0.00629974]
[1725432815283,0.3876,2382.0,2381.8,0.00629974]
[1725432815590,0.3876,2382.0,2381.9,2.9]
[1725432817985,0.80747,2382.0,2381.9,2.9]
[1725432818493,0.41985,2382.2,2381.9,2.9]
[1725432818688,0.41985,2382.2,2382.0,3.2078]
[1725432819298,40.8,2382.1,2382.0,3.2078]
[1725432820087,41.21986,2382.1,2382.0,3.2078]
[1725432820790,0.41986,2382.1,2382.0,3.2078]
[1725432824497,0.41987,2382.0,2381.9,2.9]
[1725432824799,0.41986,2382.1,2381.9,3.31989]
[1725432824995,1.43839,2382.3,2382.0,6.1078]
[1725432825190,0.41986,2382.1,2382.0,6.1078]
[1725432826400,0.41986,2382.1,2382.0,2.9]
[1725432826791,0.41986,2382.1,2381.8,3.71370974]
[1725432826792,0.41988,2382.0,2381.8,3.71370974]
[1725432826997,0.41989,2381.9,2381.8,3.29379974]
[1725432827295,0.41989,2381.9,2381.8,2.90629974]
[1725432827703,1.17649,2381.9,2381.8,2.90629974]
[1725432827904,1.17649,2381.9,2381.8,1.21629974]
[1725432837006,6.82,2382.6,2381.8,11.41469974]
[1725432837210,1.179,2382.4,2382.3,1.21]
[1725432837907,5.3766,2382.4,2382.3,1.21]
[1725432838114,1.179,2382.4,2382.3,1.21]
[1725432838415,0.4198,2382.4,2382.3,1.21]
[1725432839012,47.9977,2382.6,2382.3,1.62981]
[1725432839013,0.3702,2382.6,2382.3,1.62981]
[1725432839205,3.817,2382.8,2382.3,1.62981]
[1725432839206,7.2368,2383.3,2382.5,4.4178]
[1725432839411,40.8,2383.5,2383.2,1.21]
[1725432839613,0.3702,2383.5,2383.4,1.21]
[1725432840117,44.01133468,2383.6,2383.4,5.4052]
[1725432840317,0.00353468,2383.6,2383.5,4.61481]
[1725432840518,0.00353468,2383.6,2383.5,11.82481]
[1725432841111,1.17946707,2384.3,2383.5,11.4052]
[1725432841112,0.5822,2384.3,2383.5,11.4052]
[1725432841313,0.1396387,2384.5,2384.0,3.2078]
[1725432841611,3.2078,2384.8,2384.3,1.21]
[1725432841821,0.41946,2384.4,2384.3,0.00629974]
[1725432842120,0.41944,2384.5,2384.3,0.00629974]
[1725432842415,3.2078,2384.9,2384.4,2.9]
[1725432842617,0.41936,2385.0,2384.6,2.9]
[1725432843212,0.41935,2385.0,2384.8,2.9]
[1725432843519,40.8,2385.2,2384.8,2.9]
[1725432843520,0.41936,2384.9,2384.8,2.9]
[1725432843708,0.41945,2384.4,2384.3,0.10429974]
[1725432843921,0.41945,2384.4,2384.3,0.00629974]
[1725432844113,0.41945,2384.4,2384.3,2.90629974]
[1725432845413,3.2078,2384.8,2384.3,7.10069974]
[1725432845615,3.2078,2384.8,2384.5,2.9]
[1725432846618,0.41942,2384.6,2384.5,2.9]
[1725432847215,0.41941,2384.7,2384.5,2.9]
[1725432847528,0.41942,2384.6,2384.3,2.90629974]
[1725432847719,3.2078,2384.8,2384.3,2.90629974]
[1725432847720,0.41944,2384.5,2384.3,2.90629974]
[1725432848216,0.41945,2384.4,2384.3,2.90629974]
[1725432848419,0.41945,2384.4,2383.9,0.4749]
[1725432848420,0.41952,2384.0,2383.9,0.098]
[1725432848618,0.41952,2384.0,2383.1,2.9]
[1725432848619,3.2078,2384.0,2383.1,2.9]
[1725432848813,3.9489,2383.8,2383.1,2.9]
[1725432849115,40.8,2383.7,2383.3,2.9]
[1725432849317,41.21958,2383.7,2383.3,2.9]
[1725432849525,40.80625468,2383.7,2383.3,2.90629974]
[1725432849720,40.80625468,2383.7,2383.3,3.32593974]
[1725432849920,41.22583468,2383.7,2383.3,2.90629974]
[1725432850419,40.80625468,2383.7,2383.3,2.90629974]
[1725432850620,40.80625468,2383.7,2383.5,3.3196]
[1725432850621,0.00625468,2383.7,2383.5,3.3196]
[1725432850831,0.00625468,2383.7,2383.6,0.41959]
[1725432851019,0.00625468,2383.7,2383.5,3.3196]
[1725432851321,0.00625468,2383.7,2383.5,2.9]
[1725432851623,0.42583468,2383.7,2383.4,3.2078]
[1725432852719,0.00625468,2383.7,2383.4,3.2078]
[1725432852916,0.42582468,2383.7,2383.4,3.2078]
[1725432853117,0.00625468,2383.7,2383.4,3.2078]
[1725432853715,0.42582468,2383.7,2383.4,3.2078]
[1725432854223,0.4196,2383.6,2383.4,3.2078]
[1725432854425,0.41961,2383.5,2383.4,3.2078]
[1725432854828,0.4196,2383.6,2383.4,3.2078]
[1725432855025,0.00625468,2383.7,2383.4,3.2078]
[1725432855220,0.4196,2383.6,2383.4,3.2078]
[1725432855622,0.00625468,2383.7,2383.4,3.2078]
[1725432855623,0.41961,2383.5,2383.4,3.2078]
[1725432856424,0.42583468,2383.7,2383.4,3.2078]
[1725432856732,0.41959,2383.6,2383.4,3.2078]
[1725432857033,0.41961,2383.5,2383.4,3.2078]
[1725432857621,0.41963,2383.4,2383.3,0.00629974]
[1725432857825,0.41962,2383.5,2383.3,0.00629974]
[1725432858021,0.3725,2383.6,2383.3,0.00629974]
[1725432858225,0.42583468,2383.7,2383.3,0.42593974]
[1725432858629,0.41959,2383.6,2383.3,0.00629974]
[1725432859039,0.41961,2383.5,2383.3,0.00629974]
[1725432859226,0.00625468,2383.7,2383.3,0.00629974]
[1725432859427,0.41959,2383.6,2383.3,0.00629974]
[1725432859736,0.41961,2383.5,2383.3,0.00629974]
[1725432860034,0.41963,2383.4,2383.3,0.00629974]
[1725432860240,0.41962,2383.5,2383.3,0.00629974]
[1725432860627,0.41963,2383.4,2383.3,0.00629974]
[1725432861930,4.61563,2383.4,2383.3,0.00629974]
[1725432862235,14.5647,2383.4,2383.3,0.00629974]
[1725432862423,14.5647,2383.4,2383.0,0.098]
[1725432862424,1.46889,2383.1,2383.0,0.098]
[1725432862629,0.41973,2382.8,2382.7,0.098]
[1725432862828,6.1078,2383.2,2382.6,3.2078]
[1725432862829,0.41973,2382.9,2382.6,3.2078]
[1725432863030,0.41973,2382.8,2382.6,3.2078]
[1725432863829,7.15697,2383.2,2382.6,3.2078]
[1725432864031,0.41974,2382.8,2382.6,3.2078]
[1725432865424,1.80061,2383.4,2382.6,3.2078]
[1725432865425,0.41969,2383.1,2382.6,3.2078]
[1725432865625,0.41971,2383.0,2382.6,3.2078]
[1725432865825,0.41972,2382.9,2382.6,3.2078]
[1725432866032,4.25699,2383.2,2382.6,3.2078]
[1725432866236,3.94921,2383.1,2382.6,3.2078]
[1725432866428,0.41974,2382.8,2382.6,3.2078]
[1725432866629,2.9,2383.1,2382.6,3.2078]
[1725432866930,0.41972,2382.9,2382.6,3.2078]
[1725432867537,2.9,2383.1,2382.6,3.2078]
[1725432867933,0.41969,2383.1,2382.6,3.2078]
[1725432868133,0.4197,2383.0,2382.6,3.62756]
[1725432868326,0.41969,2383.1,2382.7,0.41975]
[1725432868529,7.44447,2383.2,2382.8,0.41973]
[1725432868832,3.817,2383.2,2382.7,0.41974]
[1725432869041,3.817,2383.2,2382.6,6.1078]
[1725432869243,3.817,2383.2,2382.9,0.41971]
[1725432869533,4.23667,2383.2,2382.8,0.41972]
[1725432869741,0.41969,2383.1,2382.7,0.80754]
[1725432869938,3.817,2383.2,2382.7,0.3878]
[1725432870137,3.817,2383.2,2382.6,3.2078]
[1725432870138,2.9,2383.1,2382.6,3.2078]
[1725432870337,0.41977,2382.6,2382.5,0.10429974]
[1725432870528,0.41977,2382.6,2382.5,0.00629974]
[1725432873144,4.61657,2382.6,2382.5,0.00629974]
[1725432873642,5.666,2382.6,2382.5,0.00629974]
[1725432874947,4.61657,2382.6,2382.5,0.00629974]
[1725432875252,1.18716,2382.7,2382.5,0.00629974]
[1725432875437,0.3823,2382.7,2382.5,0.00629974]
[1725432875638,0.80206,2382.7,2382.5,0.00629974]
[1725432876041,0.3823,2382.7,2382.5,0.00629974]
[1725432876437,0.41977,2382.6,2382.5,0.00629974]
[1725432877340,4.61657,2382.6,2382.5,0.00629974]
[1725432877944,0.41977,2382.6,2382.5,0.00629974]
[1725432880743,0.3823,2382.7,2382.5,0.00629974]
[1725432881141,0.41977,2382.6,2382.5,0.00629974]
[1725432881533,0.3823,2382.7,2382.5,0.00629974]
[1725432882146,0.3823,2382.7,2382.5,0.42607974]
[1725432882443,0.80206,2382.7,2382.5,0.00629974]
[1725432884244,0.41977,2382.6,2382.5,0.00629974]
[1725432885551,1.4692,2382.6,2382.5,0.00629974]
[1725432887142,5.666,2382.6,2382.5,0.00629974]
[1725432892542,6.71543,2382.6,2382.5,0.00629974]
[1725432893352,7.10403,2382.6,2382.5,0.00629974]
[1725432894253,0.41986,2382.1,2382.0,0.098]
[1725432894551,1.04951,2382.4,2381.9,3.62768]
[1725432894852,0.41985,2382.2,2381.9,3.62768]
[1725432895950,0.41986,2382.1,2381.9,3.62768]
[1725432896251,0.41986,2382.1,2381.9,3.2078]
[1725432896645,0.41985,2382.2,2381.9,3.62768]
[1725432896950,0.00629974,2382.3,2381.9,3.2078]
[1725432897748,0.42611974,2382.3,2382.1,0.41985]
[1725432897948,0.42612974,2382.3,2382.0,0.41987]
[1725432898148,0.00629974,2382.3,2381.9,3.2078]
[1725432898350,0.41984,2382.2,2382.0,0.41987]
[1725432898647,0.42612974,2382.3,2382.1,0.41986]
[1725432899545,0.00629974,2382.3,2382.2,3.2078]
[1725432899746,0.00629974,2382.3,2382.2,0.41984]
[1725432899946,0.00629974,2382.3,2382.1,3.2078]
[1725432900350,0.00629974,2382.3,2382.2,4.61744]
[1725432900639,0.41974,2382.8,2382.5,0.41978]
[1725432900854,0.41975,2382.7,2382.6,0.7569]
[1725432901244,0.41974,2382.8,2382.6,0.7569]
[1725432901450,4.23673,2382.9,2382.6,1.17667]
[1725432901642,0.41973,2382.8,2382.6,0.7569]
[1725432901841,4.23673,2382.9,2382.6,1.17667]
[1725432902042,3.817,2382.9,2382.7,0.41974]
[1725432902341,3.817,2382.9,2382.6,1.17666]
[1725432902652,4.23672,2382.9,2382.6,1.17666]
[1725432903942,4.23672,2382.9,2382.6,0.3948]
[1725432903943,3.817,2382.9,2382.6,0.3948]
[1725432904147,0.41977,2382.6,2382.5,3.2078]
[1725432904551,1.16816,2382.7,2382.5,3.2078]
[1725432904743,0.7484,2382.7,2382.5,3.62758]
[1725432904953,0.7484,2382.7,2382.5,3.2078]
[1725432905457,1.16815,2382.7,2382.5,3.2078]
[1725432905656,0.41975,2382.7,2382.5,3.2078]
[1725432906155,0.41974,2382.8,2382.5,0.41978]
[1725432906756,0.41975,2382.7,2382.4,3.62759]
[1725432907053,4.23672,2382.9,2382.6,0.41976]
[1725432907253,3.817,2382.9,2382.7,0.7495]
[1725432907455,3.817,2382.9,2382.4,3.2078]
[1725432907656,3.817,2382.9,2382.5,0.7495]
[1725432907848,3.817,2382.9,2382.7,0.41974]
[1725432908061,3.817,2382.9,2382.2,0.098]
[1725432908062,6.1078,2382.8,2382.2,0.098]
[1725432908254,2.9,2382.3,2382.2,0.098]
[1725432908459,2.9,2382.3,2381.9,0.3886]
[1725432908753,0.41986,2382.1,2381.8,0.00629974]
[1725432908956,0.3794,2382.2,2381.8,0.00629974]
[1725432908957,0.79925,2382.2,2381.8,0.00629974]
[1725432909149,0.80046,2382.1,2381.8,0.00629974]
[1725432910061,0.79925,2382.2,2381.8,0.00629974]
[1725432910250,0.3794,2382.2,2381.8,3.21409974]
[1725432910859,0.79924,2382.2,2381.8,3.21409974]
[1725432911656,0.3794,2382.2,2381.8,3.21409974]
[1725432912357,0.79924,2382.2,2381.8,0.00629974]
[1725432912952,0.3794,2382.2,2381.8,0.00629974]
[1725432913152,0.41986,2382.1,2381.8,3.21409974]
[1725432913357,0.79925,2382.2,2381.8,0.00629974]
[1725432913558,41.21986,2382.1,2381.8,0.00629974]
[1725432913759,0.41986,2382.1,2381.8,0.00629974]
[1725432915961,0.41988,2382.0,2381.8,0.00629974]
[1725432916771,0.41989,2381.9,2381.8,0.00629974]
[1725432917360,0.3794,2382.2,2381.8,3.21409974]
[1725432917567,4.1976,2382.4,2381.8,3.21409974]
[1725432917866,0.41986,2382.1,2381.8,3.21409974]
[1725432918173,0.41988,2382.0,2381.8,3.21409974]
[1725432920377,4.5555,2382.4,2381.8,3.21409974]
[1725432920672,1.04956,2382.3,2381.8,3.21409974]
[1725432920876,0.41986,2382.1,2381.8,3.21409974]
[1725432921168,0.41987,2382.0,2381.8,3.21409974]
[1725432921577,45.3555,2382.4,2381.8,3.63400974]
[1725432921578,0.41987,2382.1,2381.8,3.63400974]
[1725432921776,0.41985,2382.2,2381.9,0.41989]
[1725432922180,0.41985,2382.2,2381.8,3.63399974]
[1725432922482,0.41987,2382.0,2381.8,3.21409974]
[1725432922981,0.41989,2381.9,2381.8,3.21409974]
[1725432924185,0.41988,2382.0,2381.8,3.21409974]
[1725432924386,0.77758,2382.0,2381.8,3.21409974]
[1725432925381,0.41994,2381.6,2381.5,3.2078]
[1725432925685,1.46981,2381.6,2381.5,3.2078]
[1725432926386,1.46981,2381.6,2381.1,3.2078]
[1725432926387,0.42001,2381.2,2381.1,3.2078]
[1725432926889,0.42005,2381.0,2380.9,0.00629974]
[1725432928394,1.16495,2381.0,2380.9,0.00629974]
[1725432928781,11.36495,2381.0,2380.9,0.00629974]
[1725432928984,11.36495,2381.0,2380.6,0.098]
[1725432928985,0.4201,2380.7,2380.6,0.098]
[1725432929180,0.4201,2380.7,2380.5,3.2078]
[1725432929381,0.42016,2380.4,2380.1,3.3058]
[1725432929589,0.42015,2380.5,2380.1,3.2078]
[1725432929785,40.8,2380.8,2380.1,3.2078]
[1725432929989,40.8,2380.8,2380.4,0.42016]
[1725432929990,0.00629974,2380.5,2380.4,0.42016]
[1725432930384,0.00629974,2380.5,2380.4,3.62796]
[1725432930585,0.00629974,2380.5,2380.4,7.82876]
[1725432931085,0.3676,2381.0,2380.8,0.42007]
[1725432931291,0.42008,2380.9,2380.5,6.52792]
[1725432931587,0.42008,2380.9,2380.5,6.1078]
[1725432931786,0.42008,2380.9,2380.5,6.52793]
[1725432932088,0.42637974,2380.9,2380.5,6.52793]
[1725432932980,0.00629974,2380.9,2380.8,3.2078]
[1725432933187,0.42636974,2380.9,2380.5,6.1078]
[1725432933695,0.42636974,2380.9,2380.7,0.4201]
[1725432933696,0.00629974,2380.9,2380.7,0.4201]
[1725432933879,0.00629974,2380.9,2380.8,0.42008]
[1725432934183,0.00629974,2380.9,2380.7,0.4201]
[1725432935197,0.00629974,2380.9,2380.6,0.42011]
[1725432936686,0.00629974,2380.9,2380.6,0.42012]
[1725432936687,0.42637974,2380.9,2380.6,0.42012]
[1725432937291,0.00629974,2380.9,2380.5,3.2078]
[1725432937485,0.4201,2380.7,2380.5,3.2078]
[1725432937791,0.4201,2380.8,2380.5,3.2078]
[1725432938182,0.00629974,2380.9,2380.5,3.2078]
[1725432938388,0.42012,2380.6,2380.5,3.2078]
[1725432938590,0.77861,2380.7,2380.5,3.2078]
[1725432938785,4.97941,2380.7,2380.5,3.2078]
[1725432938990,4.97941,2380.7,2380.2,0.098]
[1725432938991,4.2008,2380.6,2380.2,0.098]
[1725432939185,0.42018,2380.3,2380.1,3.21409974]
[1725432939391,0.42016,2380.4,2380.1,3.21409974]
[1725432939890,0.42018,2380.3,2380.1,3.21409974]
[1725432940096,0.42017,2380.4,2380.1,3.21409974]
[1725432940290,0.42017,2380.4,2380.1,3.63429974]
[1725432940895,0.42014,2380.5,2380.1,3.63429974]
[1725432941189,0.42017,2380.4,2380.1,3.21409974]
[1725432941394,0.42017,2380.4,2380.1,3.63429974]
[1725432943096,0.42015,2380.5,2380.2,0.42019]
[1725432943481,0.78523,2380.6,2380.2,0.42019]
[1725432943688,0.42014,2380.5,2380.2,0.42019]
[1725432944193,0.42014,2380.5,2380.1,3.21409974]
[1725432944194,0.42014,2380.5,2380.1,3.63429974]
[1725432944583,0.42014,2380.5,2380.2,0.77779]
[1725432944995,0.78523,2380.6,2380.3,0.42017]
[1725432945191,0.3651,2380.6,2380.4,0.42015]
[1725432945589,0.3651,2380.6,2380.4,3.62795]
[1725432945790,0.3585,2380.7,2380.5,0.42013]
[1725432946002,4.18439974,2380.9,2380.7,0.4201]
[1725432946195,0.00629974,2380.9,2380.7,3.6279]
[1725432946398,0.00629974,2380.9,2380.8,0.79758]
[1725432947398,0.00629974,2380.9,2380.7,0.42009]
[1725432948191,0.00629974,2380.9,2380.7,3.62789]
[1725432948597,0.00629974,2380.9,2380.6,0.42011]
[1725432949197,0.00629974,2380.9,2380.7,0.4201]
[1725432949399,0.00629974,2380.9,2380.7,3.6279]
[1725432949801,0.00629974,2380.9,2380.8,0.42008]
[1725432950490,0.00629974,2380.9,2380.7,3.62789]
[1725432950896,0.00629974,2380.9,2380.8,0.42008]
[1725432951904,0.00629974,2380.9,2380.7,3.62789]
[1725432952106,0.00629974,2380.9,2380.8,0.42008]
[1725432952404,0.00629974,2380.9,2380.7,3.2078]
[1725432952602,0.00629974,2380.9,2380.7,3.6279]
[1725432953102,0.00629974,2380.9,2380.7,3.2078]
[1725432953592,0.42636974,2380.9,2380.7,3.2078]
[1725432953796,0.00629974,2380.9,2380.7,3.2078]
[1725432954298,0.00629974,2380.9,2380.7,3.6279]
[1725432955003,0.00629974,2380.9,2380.8,0.42008]
[1725432955208,0.00629974,2380.9,2380.8,0.78468]
[1725432955395,0.00629974,2380.9,2380.8,4.98468]
[1725432955597,3.817,2381.3,2381.1,0.42002]
[1725432955799,0.3792,2381.6,2381.4,0.41997]
[1725432955996,0.3792,2381.6,2381.4,3.62777]
[1725432956301,0.80011,2381.8,2381.5,0.41996]
[1725432956703,41.60011,2381.8,2381.5,0.41996]
[1725432956904,0.41993,2381.7,2381.4,3.63406974]
[1725432957098,0.41993,2381.7,2381.4,0.00629974]
[1725432957497,0.41994,2381.6,2381.4,0.00629974]
[1725432959108,0.41996,2381.5,2381.4,0.00629974]
[1725432959310,0.78416,2381.5,2381.4,0.00629974]
[1725432960605,4.98336,2381.5,2381.4,0.00629974]
[1725432961223,0.78416,2381.5,2381.4,0.00629974]
[1725432962405,6.03327,2381.5,2381.4,0.00629974]
[1725432962606,14.93327,2381.5,2381.4,0.00629974]
[1725432962810,19.19098,2381.5,2381.4,0.00629974]
[1725432963413,1.47005,2381.2,2381.1,3.2078]
[1725432963917,1.47005,2381.2,2380.6,0.098]
[1725432963918,0.42009,2380.8,2380.6,0.098]
[1725432964101,1.05009,2381.1,2380.6,0.42012]
[1725432964102,0.42007,2380.9,2380.6,0.42012]
[1725432964306,0.42007,2380.9,2380.5,7.25992974]
[1725432964607,0.42006,2381.0,2380.6,0.42012]
[1725432964807,0.7657,2381.1,2380.5,7.25992974]
[1725432964808,0.42007,2380.9,2380.5,7.25992974]
[1725432965011,0.42006,2381.0,2380.6,0.42011]
[1725432965616,0.42006,2381.0,2380.8,3.2078]
[1725432966813,0.42007,2380.9,2380.8,3.2078]
[1725432971709,0.4201,2380.7,2380.6,3.2078]
[1725432972205,4.6209,2380.7,2380.6,3.2078]
[1725432972820,5.3844,2380.7,2380.6,3.2078]
[1725432974019,5.3844,2380.7,2380.1,0.098]
[1725432974020,1.47043,2380.6,2380.1,0.098]
[1725432974220,0.42024,2380.0,2379.8,0.098]
[1725432974422,3.2078,2380.4,2379.7,0.7661]
[1725432974423,3.32024,2379.9,2379.7,0.7661]
[1725432974715,0.42028,2379.7,2379.5,3.2078]
[1725432975415,0.7689,2379.8,2379.5,3.2078]
[1725432975416,0.77519974,2379.8,2379.5,3.2078]
[1725432975621,0.42028,2379.7,2379.5,3.2078]
[1725432976320,0.77519974,2379.8,2379.5,3.2078]
[1725432976321,0.4203,2379.6,2379.5,3.2078]
[1725432976823,4.6227,2379.6,2379.5,3.2078]
[1725432979622,4.2024,2379.6,2379.5,3.2078]
[1725432980019,0.42029,2379.7,2379.5,3.2078]
[1725432980214,1.19546974,2379.8,2379.5,3.2078]
[1725432981027,0.42028,2379.7,2379.5,3.2078]
[1725432981424,0.4203,2379.6,2379.5,3.2078]
[1725432982124,0.42029,2379.7,2379.5,3.2078]
[1725432983928,1.19546974,2379.8,2379.5,3.2078]
[1725432984126,0.39319974,2379.8,2379.6,0.3869]
[1725432984325,0.00629974,2379.8,2379.7,0.3717]
[1725432985529,4.20869974,2379.8,2379.7,0.3717]
[1725432986029,0.00629974,2379.8,2379.7,0.3717]
[1725432995841,0.42655974,2379.8,2379.7,0.3717]
[1725432997238,0.42655974,2379.8,2379.6,0.3869]
[1725432998229,0.42028,2379.7,2379.6,0.3869]
[1725432998637,0.36729974,2379.8,2379.5,3.2078]
[1725432999137,0.42029,2379.7,2379.5,3.2078]
[1725433000241,0.42029,2379.7,2379.4,0.42662974]
[1725433000437,41.58755974,2379.8,2379.4,0.00629974]
[1725433000638,0.78755974,2379.8,2379.4,0.00629974]
[1725433000840,0.78755974,2379.8,2379.5,0.42031]
[1725433002243,0.78755974,2379.8,2379.4,3.21409974]
[1725433002244,0.36729974,2379.8,2379.4,3.21409974]
[1725433002546,0.42029,2379.7,2379.4,3.21409974]
[1725433002846,0.42029,2379.7,2379.4,3.63442974]
[1725433003234,0.00629974,2379.8,2379.4,3.21409974]
[1725433003438,0.78498,2380.3,2380.0,0.42022]
[1725433003644,0.78498,2380.3,2380.1,0.3718]
[1725433003645,0.42019,2380.2,2380.1,0.3718]
[1725433003837,0.42024,2380.0,2379.8,0.3841]
[1725433004036,0.42023,2380.0,2379.8,0.3841]
[1725433005148,0.42024,2379.9,2379.7,0.3718]
[1725433005339,0.42026,2379.8,2379.7,0.3718]
[1725433005540,3.2708,2379.9,2379.4,3.69619974]
[1725433005741,3.2708,2379.9,2379.4,3.59819974]
[1725433005742,0.78569,2379.7,2379.4,3.59819974]
[1725433006337,0.4203,2379.6,2379.4,3.59819974]
[1725433006541,0.3654,2379.7,2379.4,3.59819974]
[1725433006542,0.78569,2379.7,2379.4,3.59819974]
[1725433006750,0.3654,2379.7,2379.4,3.59819974]
[1725433007051,0.42027,2379.8,2379.4,4.01852974]
[1725433007252,0.78567,2379.8,2379.4,4.01852974]
[1725433008652,0.78566,2379.8,2379.4,4.01852974]
[1725433009039,0.3654,2379.8,2379.4,3.59819974]
[1725433009342,0.3708,2379.9,2379.6,0.42029]
[1725433009849,0.3582,2380.0,2379.4,6.49819974]
[1725433010049,0.3582,2380.0,2379.8,0.42026]
[1725433010442,0.3582,2380.0,2379.8,0.79236]
[1725433010947,0.3582,2380.0,2379.8,0.3721]
[1725433012046,0.3582,2380.0,2379.8,0.79236]
[1725433012752,0.3582,2380.0,2379.8,0.3721]
[1725433013542,0.00629974,2380.1,2379.9,0.42024]
[1725433013750,0.00629974,2380.1,2379.9,0.3674]
[1725433014055,0.42650974,2380.1,2379.9,0.3674]
[1725433014243,0.00629974,2380.1,2379.9,0.3674]
[1725433014749,0.42650974,2380.1,2379.9,0.3674]
[1725433015245,0.00629974,2380.1,2379.9,0.3674]
[1725433015454,0.42650974,2380.1,2379.9,0.3674]
[1725433015950,0.00629974,2380.1,2379.8,0.42026]
[1725433016155,0.3859,2380.0,2379.8,0.42026]
[1725433016855,0.3859,2380.0,2379.7,3.62807]
[1725433017057,0.3859,2380.0,2379.8,0.42026]
[1725433017255,0.3859,2380.0,2379.7,3.62807]
[1725433017449,0.3859,2380.0,2379.8,0.42026]
[1725433017649,0.3859,2380.0,2379.7,3.62807]
[1725433017951,0.3859,2380.0,2379.8,0.42026]
[1725433018349,0.3859,2380.0,2379.7,3.62807]
[1725433019154,0.3859,2380.0,2379.7,3.2078]
[1725433019450,0.3859,2380.0,2379.7,3.62807]
[1725433019652,0.3859,2380.0,2379.7,0.42027]
[1725433020349,0.3859,2380.0,2379.8,0.42026]
[1725433021851,0.3859,2380.0,2379.7,0.42027]
[1725433022055,0.3859,2380.0,2379.8,0.42026]
[1725433023753,0.80613,2380.0,2379.7,3.62807]
[1725433024065,0.80614,2380.0,2379.7,3.2078]
[1725433024459,0.42024,2379.9,2379.7,3.2078]
[1725433024657,0.42026,2379.8,2379.7,3.2078]
[1725433024856,0.4203,2379.6,2379.4,3.31209974]
[1725433025155,0.42031,2379.5,2379.4,3.21409974]
[1725433025363,0.78961,2379.5,2379.4,3.21409974]
[1725433025567,0.42038,2379.2,2378.9,0.4546]
[1725433025765,0.42038,2379.2,2378.9,0.77702]
[1725433025968,0.42036,2379.3,2378.9,0.77702]
[1725433026365,0.42037,2379.2,2378.9,0.77702]
[1725433026566,0.3621,2379.4,2378.9,0.77702]
[1725433026567,0.42036,2379.3,2378.9,0.77702]
[1725433026973,0.42037,2379.2,2378.9,0.77702]
[1725433028066,0.42037,2379.2,2379.0,0.4204]
[1725433029782,0.3621,2379.4,2378.9,0.77701]
[1725433030069,0.3621,2379.4,2378.8,0.00629974]
[1725433030070,0.42042,2378.9,2378.8,0.00629974]
[1725433030465,52.53922,2378.9,2378.8,0.00629974]
[1725433031268,53.59028,2378.9,2378.8,0.00629974]
[1725433031474,0.42049,2378.6,2378.4,3.2078]
[1725433032072,0.42047,2378.7,2378.4,3.2078]
[1725433032272,0.42047,2378.6,2378.4,3.2078]
[1725433032968,0.42673974,2378.8,2378.5,0.42048]
[1725433034874,0.42674974,2378.8,2378.5,0.42048]
[1725433035380,0.00629974,2378.8,2378.6,0.42047]
[1725433035580,0.42673974,2378.8,2378.7,0.3925]
[1725433035783,0.00629974,2378.8,2378.7,0.3925]
[1725433036175,0.00629974,2378.8,2378.7,0.81296]
[1725433036481,0.42673974,2378.8,2378.7,0.3925]
[1725433037280,0.00629974,2378.8,2378.7,4.5965]
[1725433037476,0.00629974,2378.8,2378.7,0.3925]
[1725433037673,0.42046,2378.7,2378.5,0.42049]
[1725433037873,0.80286,2378.7,2378.5,0.42049]
[1725433038971,0.80286,2378.7,2378.4,4.0174]
[1725433039184,0.80286,2378.7,2378.5,0.42049]
[1725433039675,0.3824,2378.7,2378.5,0.42049]
[1725433039867,0.80286,2378.7,2378.5,0.42049]
[1725433040274,0.80286,2378.7,2378.4,4.0174]
[1725433040480,0.80286,2378.7,2378.5,0.42049]
[1725433041378,0.3824,2378.7,2378.5,0.42049]
[1725433041776,0.42674974,2378.8,2378.6,0.42047]
[1725433042076,0.42674974,2378.8,2378.4,3.5969]
[1725433042077,0.42046,2378.7,2378.5,0.42048]
[1725433043276,0.00629974,2378.8,2378.7,0.42046]
[1725433043477,0.42673974,2378.8,2378.7,0.42046]
[1725433044480,0.42673974,2378.8,2378.6,0.42047]
[1725433045690,0.42046,2378.7,2378.5,0.42048]
[1725433046173,0.00629974,2378.8,2378.4,4.0174]
[1725433046174,0.42048,2378.6,2378.4,4.0174]
[1725433046487,0.42048,2378.6,2378.5,0.42049]
[1725433047277,0.42047,2378.7,2378.6,0.42047]
[1725433047580,0.42047,2378.7,2378.5,0.42048]
[1725433048174,0.42674974,2378.8,2378.6,0.42047]
[1725433048375,0.42674974,2378.8,2378.7,0.42046]
[1725433048579,1.308,2379.5,2378.7,4.4178]
[1725433048779,0.42033,2379.4,2379.3,0.42034]
[1725433048985,8.07533,2380.1,2379.3,0.7571]